bitfinex/quotes_ETHUSD_20220227
["timestamp","ask_amount","ask_price","bid_price","bid_amount"]
[1645986502608,4.5205,2765.6,2765.2,0.0055705]
[1645986502809,4.2205,2765.6,2765.2,0.0055705]
[1645986503011,3.5,2765.5,2765.2,0.0055705]
[1645986503212,4.5,2765.5,2765.2,0.0055705]
[1645986503411,1.0,2765.5,2765.2,0.0055705]
[1645986503613,8.0205,2765.6,2764.6,1.34875075]
[1645986503874,4.2205,2765.6,2765.2,0.0055705]
[1645986504072,3.5495,2765.6,2765.2,0.0055705]
[1645986504272,3.5,2765.5,2765.2,0.0055705]
[1645986504472,1.20326142,2765.4,2765.2,0.0055705]
[1645986504874,1.20326142,2765.4,2764.6,1.34875075]
[1645986505074,3.5495,2765.6,2765.2,0.00557053]
[1645986505276,7.0495,2765.6,2765.2,0.00557053]
[1645986505473,3.5495,2765.6,2765.2,0.00557053]
[1645986505675,3.8495,2765.6,2765.2,0.00557053]
[1645986505875,7.3495,2765.6,2765.2,0.00557053]
[1645986506076,1.05780372,2765.3,2764.6,1.34875075]
[1645986506675,1.05780372,2765.3,2764.5,2.7786]
[1645986507085,1.05780372,2765.3,2764.3,10.22132]
[1645986507086,3.5,2765.2,2764.3,1.42736]
[1645986507282,5.864469,2765.2,2764.3,0.20096]
[1645986507504,1.364469,2765.1,2764.8,0.0055703]
[1645986507711,3.5,2765.0,2764.8,0.0055703]
[1645986507908,1.864469,2765.1,2764.8,0.0055703]
[1645986508110,1.0,2765.0,2764.8,0.0055703]
[1645986508310,7.082569,2765.2,2764.1,0.00096]
[1645986508510,5.864469,2765.2,2764.1,0.00096]
[1645986508709,5.864469,2765.2,2764.8,0.00557026]
[1645986509314,6.164469,2765.2,2764.8,0.00557026]
[1645986509712,6.164469,2765.2,2764.3,0.00096]
[1645986509922,6.164469,2765.2,2764.9,0.00557288]
[1645986510113,4.8,2765.2,2764.9,0.00557288]
[1645986510314,1.3,2765.2,2764.9,0.00557288]
[1645986510716,3.5,2765.1,2764.9,0.00557288]
[1645986510915,3.5,2765.1,2764.4,1.11298931]
[1645986511113,3.5,2765.1,2764.9,0.00557285]
[1645986511368,1.364469,2765.2,2764.9,0.00557285]
[1645986511965,1.364469,2765.2,2764.4,1.11394931]
[1645986512165,1.664469,2765.2,2764.4,1.11298931]
[1645986512363,1.664469,2765.2,2764.9,0.00557285]
[1645986512364,1.364469,2765.2,2764.9,0.00557285]
[1645986512570,0.2417,2765.3,2764.9,0.00557285]
[1645986513366,0.2417,2765.3,2764.7,0.6607]
[1645986513567,0.2417,2765.3,2765.0,0.00557003]
[1645986513968,10.97075957,2766.1,2765.0,0.00557003]
[1645986514171,3.1531,2766.1,2765.0,0.00557003]
[1645986514369,0.00232197,2766.3,2765.1,1.88920184]
[1645986514567,7.4119,2766.8,2765.3,0.3607]
[1645986514568,1.82414705,2766.6,2765.3,0.3607]
[1645986514770,0.00556803,2766.3,2765.4,2.1777041]
[1645986515021,0.00556803,2766.3,2765.6,0.3607]
[1645986515228,0.00556803,2766.3,2765.8,5.0]
[1645986515424,0.00556803,2766.3,2765.9,0.8817]
[1645986515724,0.00232197,2766.9,2765.9,0.8817]
[1645986515922,0.0055687,2766.3,2765.9,0.8817]
[1645986516327,6.87e-05,2766.3,2766.1,1.26493]
[1645986516524,6.87e-05,2766.3,2766.2,3.8607]
[1645986516724,6.87e-05,2766.3,2766.2,4.92495651]
[1645986516930,0.00232197,2767.3,2766.2,5.92495651]
[1645986517123,0.00232197,2767.5,2766.2,5.92495651]
[1645986517527,1.82414705,2767.5,2766.2,5.92495651]
[1645986517730,1.15934061,2767.3,2766.7,1.41124729]
[1645986518023,1.15934061,2767.3,2766.7,2.23224729]
[1645986518423,1.82414705,2767.5,2766.7,2.23224729]
[1645986518424,0.00232197,2767.5,2766.7,2.23224729]
[1645986519562,1.20794756,2767.4,2766.7,3.13634729]
[1645986519764,1.20794756,2767.4,2766.7,2.0251]
[1645986520367,1.20794756,2767.4,2766.8,0.3]
[1645986520965,0.00587316,2767.2,2766.8,0.3]
[1645986521768,1.82182508,2767.6,2766.8,0.3]
[1645986522069,0.00587319,2767.1,2766.8,0.3]
[1645986522926,0.00232197,2767.4,2766.8,0.3]
[1645986523125,0.0036977,2767.1,2766.8,0.3]
[1645986523526,0.0036977,2767.1,2766.7,0.9041]
[1645986523726,0.0036977,2767.1,2766.5,3.025]
[1645986523925,0.0036977,2767.1,2766.5,3.325]
[1645986524132,1.19678262,2767.2,2766.5,2.725]
[1645986524326,0.0036977,2766.9,2766.2,0.521]
[1645986524527,0.0036977,2766.9,2766.1,0.38819997]
[1645986524729,0.0036977,2766.9,2766.1,0.13819997]
[1645986524928,0.0036977,2766.9,2766.3,1.1847324]
[1645986525326,0.00232197,2767.1,2766.3,1.1847324]
[1645986525532,0.00562269,2766.7,2766.3,1.1847324]
[1645986526458,1.22159198,2767.2,2765.9,0.90438]
[1645986526459,1.19910459,2767.2,2765.9,0.90438]
[1645986526660,0.00562277,2766.6,2765.9,0.00562428]
[1645986527464,0.00562277,2766.6,2766.2,1.04439924]
[1645986527663,0.00232197,2767.1,2766.2,1.04439924]
[1645986528067,0.00562286,2766.4,2766.2,1.04439924]
[1645986528866,0.00232197,2767.1,2765.9,0.90438]
[1645986529063,0.00562293,2766.4,2765.9,0.91000403]
[1645986529665,0.00562293,2766.4,2765.9,0.00562403]
[1645986529865,0.00562293,2766.4,2766.0,1.41244771]
[1645986530127,1.18234101,2766.6,2765.6,6.7244]
[1645986530327,0.00551286,2766.4,2765.9,0.00551395]
[1645986531328,0.3607096,2766.8,2765.6,2.9244]
[1645986531529,0.00551286,2766.4,2765.9,0.00551395]
[1645986532430,0.36303157,2766.8,2765.9,1.02234544]
[1645986532431,1.3255818,2766.5,2765.9,1.02234544]
[1645986532630,1.3255818,2766.5,2765.6,2.9244]
[1645986532934,0.00551286,2766.4,2765.9,0.00551395]
[1645986533782,1.3255818,2766.5,2765.6,2.9244]
[1645986533974,0.00552023,2766.4,2765.9,0.00552132]
[1645986535073,1.28526722,2766.0,2765.4,1.4306891]
[1645986535271,0.00552023,2766.4,2765.9,0.00552132]
[1645986535876,0.30552023,2766.4,2765.9,0.00552132]
[1645986536076,0.47769114,2766.6,2765.4,1.4306891]
[1645986536077,0.41698154,2766.6,2765.4,1.4306891]
[1645986536275,1.2862139,2766.5,2765.4,1.4306891]
[1645986536476,0.00552023,2766.4,2765.9,0.00552132]
[1645986537375,7.51192197,2766.7,2765.7,0.521]
[1645986537612,0.00551974,2766.4,2765.9,0.00552083]
[1645986537813,0.00551974,2766.4,2766.3,1.30148492]
[1645986538013,0.00551974,2766.4,2765.9,0.00552083]
[1645986538614,7.8976,2767.1,2765.8,0.90442]
[1645986538615,0.00131741,2765.9,2765.8,0.90442]
[1645986538913,0.00131741,2765.9,2765.7,2.92967]
[1645986539113,0.00131741,2765.9,2765.7,2.62967]
[1645986539717,0.00131741,2765.9,2765.8,4.90620517]
[1645986540624,0.00131741,2765.9,2765.8,4.3817]
[1645986540625,1.741e-05,2765.9,2765.8,4.3817]
[1645986540818,1.741e-05,2765.9,2765.7,2.41419087]
[1645986541022,1.741e-05,2765.9,2765.7,0.3]
[1645986541267,1.741e-05,2765.9,2765.7,0.00552086]
[1645986542062,1.741e-05,2765.9,2765.1,0.3607]
[1645986542262,1.741e-05,2765.9,2765.1,0.6607]
[1645986542462,1.741e-05,2765.9,2765.7,0.0055209]
[1645986543262,1.741e-05,2765.9,2765.2,1.04278997]
[1645986543464,1.741e-05,2765.9,2765.7,0.0055209]
[1645986544464,1.741e-05,2765.9,2765.2,1.04278997]
[1645986544866,1.741e-05,2765.9,2765.7,0.00552091]
[1645986545716,1.741e-05,2765.9,2765.2,1.04278997]
[1645986545916,1.741e-05,2765.9,2765.7,0.00552091]
[1645986546817,1.741e-05,2765.9,2765.2,1.04278997]
[1645986547016,1.07187726,2765.8,2765.2,1.04278997]
[1645986547219,7.1624,2766.4,2765.7,0.00552091]
[1645986547220,18.95282701,2766.3,2765.7,0.00552091]
[1645986547421,11.01,2766.1,2765.7,0.00552091]
[1645986547619,3.86087337,2766.2,2765.7,0.00472091]
[1645986547620,15.031,2766.0,2765.7,0.00472091]
[1645986547817,0.521,2765.9,2765.7,0.00472091]
[1645986548020,3.5,2765.8,2765.7,0.00472091]
[1645986548217,6.94504526,2765.8,2764.5,1.31892123]
[1645986548418,6.94504526,2765.8,2764.6,0.00096]
[1645986548867,17.95504526,2765.8,2764.6,0.00096]
[1645986549064,17.95504526,2765.8,2763.9,12.4474]
[1645986549065,18.83675486,2765.8,2764.1,0.00096]
[1645986549266,11.37087337,2765.7,2764.5,0.00096]
[1645986549464,11.37087337,2765.7,2764.4,1.11508299]
[1645986549465,3.5,2765.6,2764.4,1.11508299]
[1645986549665,3.5,2765.6,2764.5,0.00096]
[1645986549868,4.75,2765.6,2764.5,0.00096]
[1645986550267,15.76,2765.6,2764.5,0.00096]
[1645986550671,0.90514,2765.4,2764.1,0.00096]
[1645986550869,3.5,2765.3,2764.1,0.00096]
[1645986551069,3.8,2765.3,2764.1,0.00096]
[1645986551271,4.8,2765.3,2764.1,0.00096]
[1645986551475,1.12297594,2765.0,2764.3,1.38007585]
[1645986551670,4.8,2765.3,2764.4,0.00096]
[1645986551871,4.8,2765.3,2764.3,1.38007585]
[1645986552071,4.8,2765.3,2764.6,0.00587276]
[1645986552373,4.672,2765.3,2764.6,0.00587276]
[1645986553020,1.1945982,2765.0,2764.4,0.00096]
[1645986553220,1.1945982,2765.0,2764.3,1.38007585]
[1645986554220,1.4945982,2765.0,2764.3,1.38007585]
[1645986554621,0.3,2765.0,2764.3,1.38007585]
[1645986554822,4.8,2765.3,2764.3,1.38007585]
[1645986555019,4.8,2765.3,2764.4,0.00096]
[1645986555626,1.3,2765.3,2764.4,0.00096]
[1645986555828,0.3,2765.4,2764.4,0.00096]
[1645986556028,1.0,2765.4,2764.4,0.00096]
[1645986556279,3.5,2765.3,2764.4,0.00096]
[1645986556670,4.5,2765.3,2764.4,0.00096]
[1645986556867,4.5,2765.3,2764.8,0.00587163]
[1645986557068,1.41167012,2765.1,2764.8,0.00587163]
[1645986557671,1.41167012,2765.1,2764.4,0.00096]
[1645986557871,3.5,2765.3,2764.3,1.38007585]
[1645986558072,4.5,2765.3,2764.8,0.0058716]
[1645986558271,1.0,2765.3,2764.8,0.0058716]
[1645986558670,4.5,2765.3,2764.8,0.0058716]
[1645986558872,4.5,2765.3,2764.4,0.00096]
[1645986559071,1.34220784,2765.1,2764.9,0.00587152]
[1645986559275,1.0,2765.3,2764.9,0.00587152]
[1645986559476,3.0283,2765.4,2764.9,0.00587152]
[1645986559672,4.0283,2765.4,2764.9,0.00587152]
[1645986559872,3.0283,2765.4,2764.9,0.00587152]
[1645986560118,3.0283,2765.4,2764.4,0.00096]
[1645986560319,1.29445957,2765.8,2765.5,1.03778164]
[1645986560519,1.28248855,2766.2,2765.0,0.36657144]
[1645986560719,1.16782898,2766.2,2765.0,0.66657144]
[1645986561319,1.16782898,2766.2,2765.0,0.6607]
[1645986561520,1.16782898,2766.2,2765.5,0.00587108]
[1645986561821,1.16782898,2766.2,2765.5,1.05256417]
[1645986562220,0.00586921,2766.3,2765.5,1.05256417]
[1645986562620,4.5,2766.5,2765.5,1.04669309]
[1645986562821,0.90487,2766.2,2765.7,0.00587089]
[1645986563122,3.25,2766.1,2765.7,0.00587089]
[1645986563319,4.25,2766.1,2765.7,0.00587089]
[1645986563775,1.08693565,2766.0,2765.3,1.01409618]
[1645986564067,1.08693565,2766.0,2765.8,0.00587085]
[1645986564668,0.90487,2766.2,2765.8,0.00587085]
[1645986564866,1.34936716,2766.0,2765.3,1.01409618]
[1645986565272,1.34936716,2766.0,2765.8,0.00587085]
[1645986565471,1.0,2766.1,2765.8,0.00507085]
[1645986565671,2.20487,2766.2,2765.8,0.00507085]
[1645986565873,1.20487,2766.2,2765.8,0.00507085]
[1645986566071,1.20487,2766.2,2765.3,1.01409618]
[1645986566476,1.29650767,2765.9,2765.3,1.01409618]
[1645986567709,2.50487,2766.2,2765.3,1.01409618]
[1645986567910,1.50487,2766.2,2765.3,1.01409618]
[1645986568110,1.50487,2766.2,2764.9,0.00096]
[1645986568111,2.20487,2766.2,2764.9,0.00096]
[1645986568311,3.5,2766.1,2764.9,0.00096]
[1645986568712,4.5,2766.1,2765.4,0.00587112]
[1645986569112,1.32431902,2765.8,2765.4,0.00587112]
[1645986569313,1.0,2766.2,2765.4,0.00587112]
[1645986569514,0.00586914,2766.3,2765.4,0.00587112]
[1645986569719,4.20668616,2766.5,2765.2,1.10555226]
[1645986569913,4.02660508,2766.5,2765.2,1.10555226]
[1645986570119,4.02660508,2766.5,2765.7,0.00587093]
[1645986570120,0.00586948,2766.3,2765.7,0.00587093]
[1645986570919,3.5,2766.4,2765.2,1.10555226]
[1645986571121,1.29513407,2766.1,2765.8,0.00587095]
[1645986571595,1.29396275,2766.1,2765.8,0.00587095]
[1645986571993,3.5,2766.0,2765.8,0.00587095]
[1645986572194,3.5,2766.0,2764.9,0.00096]
[1645986572399,4.5,2766.0,2765.8,0.00587088]
[1645986572596,1.0,2766.0,2765.8,0.00587088]
[1645986572794,3.5,2766.0,2765.8,0.00587088]
[1645986573194,4.5,2766.0,2765.8,0.00587088]
[1645986573395,4.5,2766.0,2764.9,0.00096]
[1645986573396,1.37290855,2765.4,2764.9,0.00096]
[1645986573598,7.9284,2765.9,2765.8,0.00587085]
[1645986573794,8.9284,2765.9,2765.8,0.00587085]
[1645986574606,8.9284,2765.9,2764.9,0.00096]
[1645986574799,1.25167292,2765.4,2764.9,0.00096]
[1645986575023,3.0999,2765.7,2764.8,1.6353165]
[1645986575221,3.0999,2765.7,2764.9,0.00096]
[1645986575823,4.0999,2765.7,2764.9,0.00096]
[1645986576026,3.0999,2765.7,2765.2,0.00587132]
[1645986576228,4.0999,2765.7,2765.2,0.00587132]
[1645986577025,2.65199046,2765.7,2764.9,0.00096]
[1645986577222,1.65199046,2765.7,2765.3,0.0058712]
[1645986577423,2.65199046,2765.7,2765.3,0.0058712]
[1645986577727,1.65199046,2765.7,2765.3,0.0058712]
[1645986577922,2.65199046,2765.7,2765.3,0.0058712]
[1645986578122,2.65199046,2765.7,2764.9,0.00096]
[1645986578525,2.65199046,2765.7,2765.4,0.00587116]
[1645986578773,1.35116764,2765.6,2765.4,0.00587116]
[1645986579364,1.35116764,2765.6,2764.9,0.00096]
[1645986579565,1.35116764,2765.6,2765.4,0.00587116]
[1645986580473,1.35116764,2765.6,2764.8,0.00096]
[1645986580670,1.35116764,2765.6,2764.7,1.42694712]
[1645986580872,2.65199046,2765.7,2765.4,0.00587116]
[1645986581772,2.65199046,2765.7,2764.8,0.00096]
[1645986581973,2.65199046,2765.7,2765.4,0.00587112]
[1645986582174,1.65199046,2765.7,2765.4,0.00587112]
[1645986582375,2.65199046,2765.7,2765.4,0.00587112]
[1645986582615,1.65199046,2765.7,2765.4,0.00587112]
[1645986582814,1.34625957,2766.2,2765.4,0.00587112]
[1645986583120,7.4478,2766.5,2766.0,1.2780997]
[1645986583121,8.7505175,2766.5,2766.0,1.2780997]
[1645986583314,0.00586914,2766.3,2765.4,0.52687112]
[1645986583511,0.00586914,2766.3,2765.4,0.82687112]
[1645986584312,1.30503947,2766.5,2765.4,2.62996]
[1645986584617,1.30503947,2766.5,2764.7,2.43899431]
[1645986584618,0.00586954,2766.3,2765.7,0.00587089]
[1645986584812,3.07726954,2766.3,2765.7,0.00587089]
[1645986585216,4.07726954,2766.3,2765.7,0.00587089]
[1645986585414,3.0714,2766.3,2764.9,8.0]
[1645986585618,5.89909482,2766.3,2765.8,1.34870066]
[1645986585814,1.00586974,2766.3,2765.8,1.34870066]
[1645986586273,0.00586974,2766.3,2765.8,1.34870066]
[1645986586667,2.12182508,2766.4,2765.8,1.34282971]
[1645986586868,0.00586981,2766.3,2765.8,1.34870072]
[1645986587773,3.12182508,2766.4,2765.8,1.34282971]
[1645986587974,2.82182508,2766.4,2765.8,1.34282971]
[1645986588178,2.63918655,2766.5,2765.8,1.3485246]
[1645986588375,1.0,2766.4,2765.8,1.3485246]
[1645986588574,2.63918655,2766.5,2765.8,1.3485246]
[1645986588978,2.63918655,2766.5,2765.8,1.34282971]
[1645986589176,0.00232197,2766.6,2765.8,1.34282971]
[1645986589375,1.0,2766.5,2765.8,1.34282971]
[1645986589575,4.06432197,2766.7,2765.8,1.34282971]
[1645986590012,4.06432197,2766.7,2765.4,9.70896]
[1645986590217,4.06432197,2766.7,2765.5,0.3]
[1645986590418,0.00369884,2766.4,2765.5,0.3]
[1645986591018,0.00369884,2766.4,2766.2,1.43996874]
[1645986591420,1.0,2766.7,2766.2,1.43996874]
[1645986591619,0.00232197,2766.8,2766.2,1.43996874]
[1645986591821,0.00586995,2766.4,2766.2,1.43996874]
[1645986592622,0.00232197,2766.8,2766.2,1.43996874]
[1645986592824,0.00586995,2766.4,2766.2,1.43996874]
[1645986593026,0.00586995,2766.4,2766.0,0.00587084]
[1645986593862,0.00232197,2766.8,2765.5,1.1913]
[1645986594062,0.00586981,2766.4,2766.0,0.0058707]
[1645986595071,1.16395422,2766.4,2765.9,1.33068779]
[1645986595269,1.16395422,2766.4,2766.0,0.0058707]
[1645986595270,1.16982403,2766.4,2766.0,0.0058707]
[1645986596073,1.46982403,2766.4,2766.0,0.0058707]
[1645986596271,1.46982403,2766.4,2765.3,0.25]
[1645986596272,1.46395422,2766.4,2765.3,0.25]
[1645986596469,1.46982403,2766.4,2766.0,0.0058707]
[1645986597271,3.29096911,2766.4,2766.0,0.0058707]
[1645986597514,6.7850993,2766.4,2765.2,2.7525]
[1645986597715,1.82114508,2766.3,2766.0,0.0058707]
[1645986597915,1.82114508,2766.3,2766.0,0.0050707]
[1645986597916,3.5,2766.2,2766.0,0.0050707]
[1645986598115,1.82114508,2766.1,2766.0,0.0050707]
[1645986598314,5.32114508,2766.1,2766.0,0.0050707]
[1645986598517,5.62114508,2766.1,2766.0,0.0050707]
[1645986598720,1.31878491,2765.4,2765.1,0.00096]
[1645986598916,1.82154536,2766.0,2764.9,2.32497728]
[1645986599115,3.5,2765.9,2765.0,0.00096]
[1645986599316,4.68089223,2765.9,2765.0,0.00096]
[1645986600120,1.3334051,2765.5,2765.3,0.0021762]
[1645986600921,1.3334051,2765.5,2765.0,0.00096]
[1645986601123,6.50243759,2765.9,2764.9,1.08787728]
[1645986601367,6.50243759,2765.9,2765.3,0.00217624]
[1645986601563,1.82154536,2765.8,2765.3,0.00217624]
[1645986601763,3.5,2765.7,2765.3,0.00217624]
[1645986602260,1.18732117,2765.1,2764.8,0.00096]
[1645986602461,0.93732117,2765.1,2764.5,0.25096]
[1645986602663,0.93732117,2765.1,2764.5,0.00096]
[1645986602960,0.93732117,2765.1,2764.2,0.02349444]
[1645986602961,0.93732117,2765.1,2764.3,1.52996598]
[1645986603160,0.93732117,2765.1,2764.3,1.52900598]
[1645986603361,3.5,2765.0,2764.2,0.00096]
[1645986603563,3.5,2765.0,2764.0,1.53004646]
[1645986603761,1.35241803,2764.6,2764.1,0.0244507]
[1645986603967,4.5,2765.0,2764.2,1.52908646]
[1645986603968,3.5,2765.0,2764.2,1.52908646]
[1645986604170,4.5,2765.0,2764.2,1.52908646]
[1645986604568,4.5,2765.0,2764.1,0.00096]
[1645986604769,4.5,2765.0,2764.5,0.00587187]
[1645986605011,1.12756338,2764.9,2764.5,0.00587187]
[1645986605215,3.5,2764.8,2764.5,0.00587187]
[1645986605615,4.5,2764.8,2764.5,0.00587187]
[1645986605816,4.38607507,2764.8,2763.9,0.00096]
[1645986606017,4.38607507,2764.8,2763.9,1.53015043]
[1645986606215,4.38607507,2764.8,2764.5,0.00587183]
[1645986607018,3.5,2764.7,2763.9,0.00096]
[1645986607216,4.5,2764.7,2764.5,0.00587183]
[1645986607416,2.1564,2764.7,2764.5,0.00587183]
[1645986607816,12.1664,2764.7,2764.5,0.00587183]
[1645986608217,13.1664,2764.7,2764.5,0.008]
[1645986608418,12.7971841,2764.6,2764.5,0.008]
[1645986608619,12.7971841,2764.6,2764.5,0.01387187]
[1645986608620,14.00277787,2764.6,2764.5,0.01387187]
[1645986608866,14.00277787,2764.6,2764.0,0.02349101]
[1645986608867,12.82138,2764.4,2764.0,0.02349101]
[1645986609069,11.01,2764.2,2764.0,0.02349101]
[1645986609282,11.531,2764.1,2764.0,0.02349101]
[1645986609467,11.01,2764.1,2763.3,0.00096]
[1645986609667,11.531,2764.1,2763.3,0.00096]
[1645986609868,12.531,2764.1,2763.3,0.00096]
[1645986610271,11.01,2763.9,2763.3,0.00096]
[1645986610470,11.01,2763.9,2763.2,0.00096]
[1645986610675,12.31,2763.9,2763.2,0.00096]
[1645986610872,11.01,2763.7,2762.7,1.33221786]
[1645986611072,11.01,2763.7,2762.7,1.33317786]
[1645986611274,12.01,2763.7,2762.8,0.00096]
[1645986611479,12.31,2763.7,2762.8,0.00096]
[1645986612076,11.01,2763.6,2763.1,0.00587629]
[1645986612276,1.11459216,2763.3,2763.1,0.00587629]
[1645986612911,1.11459216,2763.3,2762.7,0.02350867]
[1645986613112,1.11459216,2763.3,2762.6,0.00096]
[1645986613412,11.61,2763.7,2763.1,0.00587633]
[1645986613413,1.0,2763.6,2763.1,0.00587633]
[1645986613613,0.6,2763.7,2763.1,0.00587633]
[1645986613614,1.6,2763.7,2763.1,0.00587633]
[1645986613813,0.3,2763.7,2763.1,0.00587633]
[1645986614013,2.5193,2763.8,2763.1,0.00587633]
[1645986614214,2.5193,2763.8,2763.4,1.35066244]
[1645986614419,1.3,2763.8,2763.4,1.35066244]
[1645986614616,1.25135102,2763.7,2763.4,1.35066244]
[1645986615921,1.25135102,2763.7,2763.4,1.35473849]
[1645986616378,11.3707096,2763.6,2763.4,1.35473849]
[1645986616580,11.6707096,2763.6,2763.4,1.34886244]
[1645986616782,11.531,2763.5,2763.4,1.34886244]
[1645986616982,11.831,2763.5,2763.4,1.35473849]
[1645986617176,12.831,2763.5,2763.4,1.35473849]
[1645986617775,12.831,2763.5,2763.4,1.29886244]
[1645986618377,12.831,2763.5,2763.4,0.51088155]
[1645986618584,12.831,2763.5,2763.3,0.00217675]
[1645986618585,11.01,2763.2,2762.9,0.0087083]
[1645986618778,12.31,2763.2,2762.9,0.0087083]
[1645986618978,11.01,2763.0,2762.4,0.00096]
[1645986619180,11.531,2762.9,2761.6,0.00096]
[1645986619378,1.12667556,2762.1,2761.6,0.00096]
[1645986619585,12.2072,2762.7,2761.5,8.67805453]
[1645986619778,13.7282,2762.7,2761.6,0.00096]
[1645986620020,14.0282,2762.7,2761.6,0.00096]
[1645986620429,11.01,2762.5,2762.0,0.00588113]
[1645986620830,12.01,2762.5,2762.0,0.00588113]
[1645986621329,12.01,2762.5,2761.6,0.00096]
[1645986621733,12.31,2762.5,2762.1,0.00588105]
[1645986622532,12.31,2762.5,2761.6,0.00096]
[1645986622733,1.0,2762.5,2761.6,0.00096]
[1645986622932,1.0,2762.5,2762.2,0.00588101]
[1645986623131,1.4972,2762.7,2762.2,0.00588101]
[1645986623883,1.4972,2762.7,2761.6,0.00096]
[1645986624081,1.23918857,2762.5,2762.3,0.00588089]
[1645986625089,1.23918857,2762.5,2761.3,0.00096]
[1645986625392,1.23918857,2762.5,2762.3,0.00588093]
[1645986625788,11.22897,2762.7,2762.3,0.00588093]
[1645986625990,10.3229,2762.7,2762.3,0.00588093]
[1645986626189,10.3229,2762.7,2761.3,3.86166]
[1645986626390,10.3229,2762.7,2761.3,0.00096]
[1645986626590,0.3607096,2762.6,2762.4,0.00588085]
[1645986626792,11.01,2762.5,2762.4,0.00588085]
[1645986627196,13.06892804,2762.5,2762.4,0.00588085]
[1645986627392,13.06892804,2762.5,2761.5,0.00096]
[1645986627613,1.15323014,2762.0,2761.5,0.00096]
[1645986627811,12.01,2762.5,2761.9,0.0235271]
[1645986628216,12.31,2762.5,2761.9,0.0235271]
[1645986628619,12.31,2762.5,2761.2,0.00096]
[1645986628815,0.90621,2762.2,2761.2,0.00096]
[1645986629018,1.26383256,2761.7,2761.6,0.02352789]
[1645986629220,11.91621,2762.2,2761.6,0.02352789]
[1645986629221,11.01,2761.9,2761.6,0.02352789]
[1645986629518,11.31,2761.9,2761.6,0.02352789]
[1645986629723,12.31,2761.9,2761.6,0.02352789]
[1645986629921,12.31,2761.9,2760.8,0.00096]
[1645986630119,12.31,2761.9,2761.6,0.00588144]
[1645986630820,13.21633,2761.9,2761.6,0.00588144]
[1645986631019,13.21633,2761.9,2760.8,0.00096]
[1645986631285,13.21633,2761.9,2761.6,0.00588144]
[1645986631472,1.2120512,2761.8,2761.6,0.00588144]
[1645986631673,1.90633,2761.9,2761.6,0.00588144]
[1645986631874,1.0,2761.9,2761.6,0.00588144]
[1645986632073,0.6607096,2762.0,2761.6,0.00588144]
[1645986632282,0.3607096,2762.0,2761.0,0.00096]
[1645986632479,0.3607096,2762.0,2761.6,0.00588144]
[1645986633277,1.74758641,2762.0,2761.6,0.00588144]
[1645986633478,1.74758641,2762.0,2760.8,0.00096]
[1645986633778,1.74758641,2762.0,2761.7,0.0058814]
[1645986634080,1.44758641,2762.0,2761.7,0.0058814]
[1645986634278,11.01,2761.9,2761.7,0.0058814]
[1645986634679,12.01,2761.9,2761.3,0.00096]
[1645986634882,12.01,2761.9,2760.7,13.3384]
[1645986634883,12.01,2761.9,2761.7,0.0058814]
[1645986635828,12.01,2761.9,2760.8,0.00096]
[1645986636028,1.0,2761.9,2760.8,0.00096]
[1645986636231,2.04758641,2762.0,2761.7,0.0058814]
[1645986636728,2.26858641,2762.0,2761.7,0.0058814]
[1645986636929,11.3707096,2761.9,2761.7,0.0058814]
[1645986637127,11.01,2761.7,2760.5,0.00096]
[1645986637327,11.91646,2761.5,2760.5,0.00096]
[1645986637530,12.21646,2761.5,2760.5,0.00096]
[1645986637729,13.21646,2761.5,2760.5,0.00096]
[1645986638783,1.61772347,2761.2,2760.6,1.24585131]
[1645986638966,1.61772347,2761.2,2760.6,0.94681131]
[1645986639167,1.61772347,2761.2,2759.9,0.25]
[1645986639168,12.98843307,2761.2,2759.9,0.25]
[1645986639370,11.01,2761.0,2759.7,2.7038]
[1645986639569,11.01,2761.0,2760.0,0.04206334]
[1645986639570,11.31,2761.0,2760.0,0.04206334]
[1645986639767,12.31,2761.0,2760.8,0.00587194]
[1645986640574,1.3,2761.0,2760.8,0.00587194]
[1645986640774,11.31,2761.0,2760.0,0.04206334]
[1645986640974,11.31,2761.0,2760.8,0.00216298]
[1645986641375,11.531,2760.9,2760.8,0.00216298]
[1645986641575,11.8917096,2760.9,2760.8,0.00216298]
[1645986641874,12.8917096,2760.9,2760.0,0.04206334]
[1645986642075,11.01,2760.3,2760.0,0.04206334]
[1645986642273,12.01,2760.3,2760.0,0.04206334]
[1645986642729,12.01,2760.3,2759.9,0.04263176]
[1645986642929,12.31,2760.3,2759.9,0.04263176]
[1645986643127,12.31,2760.3,2759.3,0.00096]
[1645986643128,13.1917096,2760.3,2759.4,0.04547388]
[1645986643329,13.1917096,2760.3,2760.0,0.00216357]
[1645986643725,13.1917096,2760.3,2760.1,0.04149491]
[1645986644128,14.51,2760.2,2760.1,0.04149491]
[1645986644327,15.69654066,2760.2,2760.1,0.04149491]
[1645986644530,15.87662174,2760.2,2760.1,0.04737139]
[1645986644728,15.87662174,2760.2,2759.6,0.02350946]
[1645986644729,11.01,2760.0,2759.6,0.02350946]
[1645986644928,14.5,2760.1,2759.6,0.02350946]
[1645986644929,1.04250057,2759.7,2759.6,0.02350946]
[1645986645132,12.05250057,2759.7,2759.6,0.02350946]
[1645986645434,12.05250057,2759.7,2759.3,0.00096]
[1645986645435,13.05250057,2759.7,2759.3,0.00096]
[1645986645629,13.05250057,2759.7,2759.0,0.00096]
[1645986645928,2.04250057,2759.7,2759.0,0.00096]
[1645986646129,2.34250057,2759.7,2758.6,0.00096]
[1645986646376,1.34250057,2759.7,2758.9,1.39211228]
[1645986646577,1.34250057,2759.7,2758.6,0.00096]
[1645986646779,3.5,2759.6,2758.4,0.00096]
[1645986646976,2.61025017,2759.7,2758.4,0.00096]
[1645986647176,12.01,2759.6,2758.4,0.00096]
[1645986647377,15.51,2759.6,2758.4,0.00096]
[1645986647776,15.51,2759.6,2758.9,1.37790527]
[1645986648177,15.51,2759.6,2759.0,0.00215748]
[1645986648777,4.5,2759.6,2759.0,0.00215748]
[1645986648978,1.0,2759.6,2758.4,0.00096]
[1645986649179,1.2086,2759.9,2758.4,0.00096]
[1645986649379,1.2086,2759.9,2759.2,0.00587436]
[1645986650125,1.2086,2759.9,2759.5,1.35349796]
[1645986650326,1.67244175,2760.0,2759.1,0.00096]